bitfinex/quotes_SOLUSD_20251126
["timestamp","ask_amount","ask_price","bid_price","bid_amount"]
[1764184013408,3.1,144.28,144.27,7.64144797]
[1764184013779,7.48498842,144.32,144.27,7.64144797]
[1764184013995,11.90994492,144.31,144.28,0.71]
[1764184014398,16.29493334,144.33,144.28,113.78037092]
[1764184014611,3.1,144.32,144.29,7.48498842]
[1764184014915,8.80994492,144.31,144.27,24.26006791]
[1764184015104,7.48498842,144.29,144.27,6.93144797]
[1764184015410,3.1,144.29,144.27,44.0853825]
[1764184015617,3.1,144.29,144.27,44.7953825]
[1764184017284,3.1,144.29,144.28,6.93096756]
[1764184020021,3.1,144.29,144.28,69.14096756]
[1764184020312,3.82,144.29,144.28,61.5]
[1764184020990,3.1,144.29,144.28,68.43096756]
[1764184021195,2.79881375,144.31,144.28,68.43096756]
[1764184021414,3.1,144.3,144.28,68.43096756]
[1764184022388,3.1,144.3,144.28,69.14096756]
[1764184022589,8.80994492,144.33,144.29,3.50881375]
[1764184022891,8.80994492,144.33,144.29,44.7953825]
[1764184023208,3.1,144.32,144.29,44.7953825]
[1764184023512,3.1,144.32,144.29,44.0853825]
[1764184023717,0.72,144.31,144.29,44.0853825]
[1764184024012,3.82,144.32,144.29,44.0853825]
[1764184024193,6.61881375,144.32,144.29,44.0853825]
[1764184024508,5.89881375,144.32,144.29,51.01549174]
[1764184024715,9.52994492,144.31,144.29,6.93010924]
[1764184025185,0.72,144.34,144.29,23.23897324]
[1764184025385,2.79881375,144.33,144.29,6.93010924]
[1764184025585,11.90994492,144.32,144.29,6.93010924]
[1764184025784,12.62994492,144.32,144.29,6.93010924]
[1764184026088,11.90994492,144.32,144.29,7.64010924]
[1764184026897,12.57994492,144.32,144.29,6.93010924]
[1764184027093,11.90994492,144.32,144.29,6.93010924]
[1764184027302,8.80994492,144.34,144.3,47.59419625]
[1764184027490,3.1,144.33,144.31,0.71]
[1764184027693,3.1,144.33,144.3,44.7953825]
[1764184028107,6.56881375,144.33,144.3,44.0853825]
[1764184028407,5.89881375,144.33,144.3,44.0853825]
[1764184028788,6.56881375,144.33,144.3,44.0853825]
[1764184028989,6.56881375,144.33,144.3,51.01508505]
[1764184029506,2.79881375,144.31,144.27,68.43137397]
[1764184029710,3.46881375,144.3,144.27,68.43137397]
[1764184029899,3.1,144.29,144.27,69.14137397]
[1764184030509,8.80994492,144.32,144.28,3.50881375]
[1764184030707,3.1,144.31,144.28,3.50881375]
[1764184030914,8.80994492,144.32,144.29,0.71]
[1764184031102,3.1,144.31,144.3,53.81420318]
[1764184031308,3.1,144.31,144.3,132.6392205]
[1764184031505,0.67,144.36,144.32,44.0853825]
[1764184031706,4.33458463,144.38,144.33,3.50881375]
[1764184032012,11.90994492,144.37,144.33,3.50881375]
[1764184032209,11.90994492,144.37,144.34,0.71]
[1764184033096,16.94807648,144.37,144.33,7.63856647]
[1764184036408,16.94807648,144.37,144.33,69.13856647]
[1764184037308,16.27807648,144.37,144.34,7.58786026]
[1764184037511,0.86571092,144.39,144.35,4.36813156]
[1764184037716,3.1,144.38,144.35,62.16]
[1764184038014,13.17807648,144.37,144.34,44.0853825]
[1764184038194,8.80994492,144.37,144.34,44.0853825]
[1764184038397,3.1,144.36,144.34,55.38159707]
[1764184038594,3.1,144.36,144.35,0.66]
[1764184039206,3.1,144.36,144.34,116.88159707]
[1764184039498,3.1,144.36,144.34,117.54159707]
[1764184039999,1e-08,144.41,144.36,44.0853825]
[1764184040225,3.1,144.4,144.37,4.36813156]
[1764184040399,3.1,144.4,144.37,0.66]
[1764184041322,13.85807649,144.41,144.37,0.66]
[1764184041521,3.1,144.39,144.38,6.92616705]
[1764184041698,13.85807649,144.41,144.38,6.92616705]
[1764184041913,1e-08,144.41,144.38,6.92616705]
[1764184042102,1e-08,144.41,144.4,48.45351406]
[1764184042303,3.10000001,144.41,144.4,109.95351406]
[1764184042519,3.10000001,144.41,144.4,110.61351406]
[1764184043004,3.10000001,144.41,144.4,126.92237806]
[1764184043722,3.10000001,144.41,144.4,128.81945425]
[1764184043926,3.10000001,144.41,144.4,129.47945425]
[1764184044130,3.10000001,144.41,144.4,133.84758581]
[1764184044929,1e-08,144.41,144.4,133.84758581]
[1764184047513,1e-08,144.41,144.4,72.34758581]
[1764184047833,1e-08,144.41,144.4,60.40685337]
[1764184048327,1e-08,144.41,144.4,56.03872181]
[1764184048728,0.2,144.44,144.43,60.3942465]
[1764184048929,0.2,144.44,144.43,126.92237805]
[1764184049736,0.88,144.44,144.43,77.80886399]
[1764184050228,0.2,144.44,144.43,77.80886399]
[1764184050813,0.2,144.44,144.43,84.73263329]
[1764184051421,3.28,144.44,144.43,84.73263329]
[1764184051624,3.28,144.44,144.43,85.39263329]
[1764184051928,0.2,144.44,144.43,89.76076485]
[1764184052137,3.28,144.44,144.43,133.84614735]
[1764184052933,0.2,144.44,144.43,133.84614735]
[1764184057323,0.2,144.45,144.44,65.66813155]
[1764184057530,0.2,144.46,144.45,44.0853825]
[1764184057718,0.2,144.46,144.45,110.41351405]
[1764184058838,0.2,144.46,144.45,105.38538249]
[1764184059145,0.2,144.46,144.45,117.33632471]
[1764184061329,0.2,144.46,144.45,116.67632471]
[1764184061732,0.88,144.46,144.43,44.0853825]
[1764184061934,0.88,144.46,144.43,55.37721799]
[1764184062235,0.68,144.45,144.43,55.37721799]
[1764184062442,0.88,144.46,144.43,55.37721799]
[1764184063239,0.68,144.45,144.43,55.37721799]
[1764184064058,0.2,144.46,144.43,55.37721799]
[1764184064264,0.86,144.46,144.43,55.37721799]
[1764184064554,8.80994492,144.45,144.42,27.60120885]
[1764184064756,8.80994492,144.45,144.41,44.0853825]
[1764184064757,3.08,144.44,144.41,44.0853825]
[1764184065060,3.74,144.44,144.41,44.0853825]
[1764184065229,0.66,144.43,144.41,64.76237806]
[1764184065827,0.66,144.43,144.41,20.67699556]
[1764184066045,0.66,144.45,144.42,48.45351406]
[1764184066252,3.74,144.44,144.42,4.36813156]
[1764184068657,3.74,144.44,144.42,11.29228633]
[1764184068857,3.08,144.44,144.41,23.23356947]
[1764184069164,3.08,144.44,144.41,65.66813155]
[1764184069165,0.66,144.43,144.41,65.66813155]
[1764184069342,0.66,144.43,144.41,61.29999999]
[1764184069551,8.80994492,144.42,144.39,88.90247498]
[1764184069865,8.80994492,144.42,144.39,72.59361098]
[1764184070157,3.08,144.41,144.39,68.22547942]
[1764184070361,3.08,144.41,144.39,61.29999999]
[1764184070700,3.08,144.41,144.4,4.36813156]
[1764184071573,3.08,144.41,144.39,68.2256204]
[1764184072582,3.08,144.41,144.39,72.59375196]
[1764184072883,8.80994492,144.43,144.4,5.03813156]
[1764184073082,8.80994492,144.43,144.4,4.36813156]
[1764184073083,3.08,144.42,144.4,4.36813156]
[1764184073980,3.08,144.42,144.39,90.57797039]
[1764184074682,3.74,144.42,144.39,68.8956204]
[1764184074892,3.74,144.42,144.39,68.2256204]
[1764184075066,3.74,144.42,144.39,6.92562041]
[1764184075388,0.66,144.41,144.39,6.92562041]
[1764184076578,0.66,144.41,144.38,23.23490441]
[1764184077764,8.80994492,144.4,144.38,16.308864]
[1764184078184,9.46994492,144.4,144.38,16.308864]
[1764184078787,0.66,144.42,144.38,23.23498619]
[1764184079108,12.54994492,144.41,144.38,28.27311775]
[1764184080707,11.88994492,144.41,144.38,28.27311775]
[1764184080918,0.28432314,144.43,144.38,67.32036869]
[1764184081202,3.74,144.4,144.38,16.308864]
[1764184081517,3.08,144.4,144.38,28.2730769]
[1764184081876,3.08,144.4,144.38,16.308864]
[1764184082200,0.66,144.39,144.38,16.308864]
[1764184082713,0.66,144.39,144.38,23.23503105]
[1764184082907,5.02813156,144.41,144.38,23.23503105]
[1764184083086,16.91807648,144.4,144.38,16.308864]
[1764184083615,16.91807648,144.4,144.36,44.0853825]
[1764184083616,5.02813156,144.39,144.36,44.0853825]
[1764184083781,13.83807648,144.39,144.36,44.0853825]
[1764184084099,8.80994492,144.37,144.33,4.36813156]
[1764184084401,4.36813156,144.34,144.27,51.11680654]
[1764184084593,4.36813156,144.3,144.27,0.1]
[1764184084793,3.08,144.29,144.27,0.1]
[1764184085090,8.10813156,144.29,144.27,0.1]
[1764184085291,9.46994492,144.28,144.27,0.1]
[1764184087214,3.08,144.28,144.27,7.73144797]
[1764184087426,3.08,144.28,144.27,0.1]
[1764184088398,9.51994492,144.3,144.27,7.03143396]
[1764184088599,3.08,144.29,144.27,7.03143396]
[1764184088820,18.5328134,144.31,144.27,7.03143396]
[1764184088821,3.08,144.28,144.27,19.33466125]
[1764184089512,3.08,144.28,144.27,18.63466125]
[1764184090104,3.08,144.28,144.27,0.1]
[1764184091129,12.59994492,144.28,144.27,0.1]
[1764184091816,37.14274132,144.28,144.23,0.1]
[1764184092016,11.60326457,144.25,144.23,0.1]
[1764184092226,11.88994492,144.24,144.23,0.1]
[1764184092409,24.48753263,144.24,144.19,0.1]
[1764184092610,21.40753263,144.23,144.19,0.1]
[1764184092910,0.28432314,144.21,144.19,0.1]
[1764184093111,23.49320949,144.2,144.19,0.1]
[1764184093310,24.48753263,144.2,144.19,0.1]
[1764184093812,24.48753263,144.2,144.16,0.1]
[1764184093813,6.93577472,144.18,144.16,0.1]
[1764184094016,0.28432314,144.16,144.14,0.2]
[1764184094225,21.09320949,144.15,144.14,0.2]
[1764184094430,11.88994492,144.15,144.14,0.2]
[1764184094722,3.08,144.15,144.14,0.88]
[1764184095032,3.08,144.15,144.14,8.38880528]
[1764184095337,3.08,144.15,144.14,7.81769945]
[1764184095635,3.08,144.15,144.14,0.2]
[1764184096502,3.08,144.15,144.14,8.38880528]
[1764184096712,3.08,144.15,144.14,15.32650473]
[1764184096945,3.08,144.15,144.14,59.41188723]
[1764184097131,8.80994492,144.2,144.14,59.41188723]
[1764184097332,0.14216157,144.21,144.14,59.41188723]
[1764184097333,3.08,144.19,144.17,23.81766928]
[1764184097505,3.08,144.18,144.17,23.81766928]
[1764184098140,3.08,144.18,144.17,30.75392508]
[1764184098510,3.08,144.18,144.17,23.81766928]
[1764184098712,3.08,144.18,144.17,16.308864]
[1764184098915,16.42441852,144.21,144.17,30.75388728]
[1764184099116,3.08,144.2,144.17,23.81766928]
[1764184099532,8.80994492,144.22,144.19,7.50880528]
[1764184099713,8.80994492,144.22,144.14,105.7853825]
[1764184099714,3.76,144.21,144.14,105.7853825]
[1764184099917,23.25430382,144.19,144.14,113.29418778]
[1764184100133,3.08,144.18,144.14,120.23181805]
[1764184100433,8.80994492,144.17,144.14,0.2]
[1764184100635,3.1,144.16,144.15,8.18880528]
[1764184101019,8.80994492,144.2,144.15,69.68880528]
[1764184101342,3.1,144.19,144.16,7.50880528]
[1764184102854,10.03534098,144.19,144.15,68.68880528]
[1764184103236,3.1,144.19,144.16,8.18880528]
[1764184103433,3.1,144.18,144.17,7.50880528]
[1764184103943,3.1,144.18,144.17,8.18880528]
[1764184104120,3.1,144.18,144.16,76.808864]
[1764184104326,3.1,144.17,144.16,91.25437581]
[1764184104525,3.1,144.17,144.16,83.74557053]
[1764184104830,3.1,144.17,144.16,31.43437581]
[1764184106823,3.1,144.17,144.16,23.24557053]
[1764184107544,7.50880528,144.2,144.16,16.308864]
[1764184107729,3.1,144.19,144.16,16.988864]
[1764184108135,3.78,144.19,144.16,16.308864]
[1764184108341,10.60880528,144.19,144.16,23.24541262]
[1764184108542,3.1,144.19,144.16,23.24541262]
[1764184108754,16.3187502,144.2,144.16,23.24541262]
[1764184109054,3.1,144.19,144.16,23.24541262]
[1764184109467,3.1,144.18,144.16,23.92541262]
[1764184109839,14.44075487,144.26,144.2,60.3942465]
[1764184110060,19.4187502,144.25,144.21,7.50880528]
[1764184110244,19.4187502,144.25,144.2,84.31766928]
[1764184110245,7.50880528,144.24,144.2,84.31766928]
[1764184110447,8.18880528,144.24,144.2,76.808864]
[1764184111348,8.80994492,144.25,144.2,84.99766928]
[1764184111548,3.1,144.24,144.21,15.12313715]
[1764184112061,3.1,144.23,144.22,0.68]
[1764184112447,3.1,144.23,144.22,68.68880528]
[1764184112765,3.1,144.23,144.22,61.18]
[1764184112943,3.1,144.23,144.22,60.5]
[1764184113545,3.1,144.23,144.22,8.18880528]
[1764184114063,3.1,144.23,144.22,0.68]
[1764184114238,3.1,144.23,144.2,60.5]
[1764184114766,3.78,144.23,144.2,60.5]
[1764184115238,11.28880528,144.23,144.2,60.5]
[1764184115865,3.78,144.23,144.2,60.5]
[1764184116075,16.9987502,144.22,144.19,60.5]
[1764184116569,8.18880528,144.21,144.18,16.308864]
[1764184116772,3.1,144.2,144.18,16.308864]
[1764184117563,3.1,144.2,144.18,23.24459272]
[1764184117755,3.1,144.2,144.17,7.50880528]
[1764184117962,3.1,144.2,144.17,8.18880528]
[1764184118768,3.1,144.19,144.18,8.18880528]
[1764184118970,3.1,144.19,144.18,24.49766928]
[1764184119556,3.1,144.19,144.18,16.988864]
[1764184120172,3.1,144.19,144.18,75.5188265]
[1764184120673,3.1,144.19,144.18,68.01002122]
[1764184121480,3.1,144.19,144.18,128.51002122]
[1764184122180,6.93344977,144.23,144.18,136.0188265]
[1764184122383,6.93344977,144.23,144.2,7.50880528]
[1764184122384,3.1,144.22,144.2,7.50880528]
[1764184122560,3.1,144.22,144.2,68.00880528]
[1764184122755,3.1,144.22,144.2,60.5]
[1764184123081,20.0987502,144.22,144.2,60.5]
[1764184123284,9.48994492,144.21,144.17,14.44496698]
[1764184123458,9.48994492,144.21,144.17,15.12496698]
[1764184123878,9.48994492,144.21,144.17,8.18880528]
[1764184124071,16.9987502,144.21,144.16,74.83963858]
[1764184124263,15.12361804,144.2,144.16,44.0853825]
[1764184124461,3.1,144.19,144.16,44.0853825]
[1764184124662,11.28880528,144.19,144.16,44.0853825]
[1764184124862,16.3187502,144.17,144.14,0.2]
[1764184125058,10.60880528,144.16,144.14,0.2]
[1764184125273,16.3187502,144.19,144.15,0.66]
[1764184125473,3.1,144.18,144.15,52.25418778]
[1764184125775,3.1,144.18,144.15,44.7453825]
[1764184126082,10.60880528,144.18,144.15,44.7453825]
[1764184126279,10.60880528,144.18,144.15,44.0853825]
[1764184126280,17.54464645,144.18,144.15,44.0853825]
[1764184126582,3.1,144.18,144.15,51.68259711]
[1764184127690,0.86685159,144.2,144.15,58.53140239]
[1764184127873,3.1,144.19,144.18,7.50880528]
[1764184128074,3.1,144.19,144.17,51.59418778]
[1764184128274,7.50880528,144.21,144.18,0.66]
[1764184128476,3.1,144.2,144.18,0.66]
[1764184128679,7.50880528,144.19,144.15,44.7453825]
[1764184128982,3.1,144.18,144.16,0.66]
[1764184129358,8.18880528,144.2,144.16,0.66]
[1764184129563,3.1,144.17,144.16,0.66]
[1764184129861,3.1,144.17,144.16,7.59673695]
[1764184130268,3.1,144.17,144.16,6.93673695]
[1764184130673,3.1,144.17,144.16,7.59673695]
[1764184131981,3.1,144.17,144.15,51.02242992]
[1764184132361,3.1,144.17,144.15,51.02258693]
[1764184132778,3.1,144.17,144.15,51.68258693]
[1764184132978,3.1,144.17,144.15,7.59720443]
[1764184133894,3.1,144.17,144.15,6.93720443]
[1764184134082,8.80994492,144.2,144.16,3.4628637]
[1764184134294,3.1,144.19,144.18,2.8028637]
[1764184134471,12.47941982,144.24,144.18,2.8028637]
[1764184134806,11.90994492,144.23,144.19,3.4628637]
[1764184135386,15.39280862,144.23,144.19,0.66]
[1764184135788,22.32658729,144.23,144.19,0.66]
[1764184135980,22.32658729,144.23,144.19,7.59525117]
[1764184136178,22.32658729,144.23,144.19,0.66]
[1764184136375,19.22658729,144.23,144.19,0.66]
[1764184136575,3.1,144.22,144.19,7.59525331]
[1764184138592,12.83676181,144.22,144.18,60.5]
[1764184138797,10.03389811,144.22,144.19,0.66]
[1764184138997,3.1,144.22,144.19,0.66]
[1764184140375,2.8028637,144.2,144.16,16.308864]
[1764184140574,11.61280862,144.17,144.14,0.2]
[1764184140771,3.1,144.16,144.15,3.4628637]
[1764184140970,3.1,144.16,144.15,2.8028637]
[1764184141373,3.1,144.16,144.15,3.4628637]
[1764184141774,3.1,144.16,144.15,10.40008187]
[1764184142080,3.1,144.16,144.15,70.90008187]
[1764184142476,3.1,144.16,144.15,88.2431273]
[1764184142782,3.1,144.16,144.15,92.94639504]
[1764184143295,3.1,144.16,144.15,68.09721817]
[1764184143501,3.1,144.16,144.14,0.2]
[1764184144776,17.54317613,144.16,144.14,0.2]
[1764184145079,18.22317613,144.16,144.14,0.2]
[1764184146515,8.17613144,144.15,144.14,60.7]
[1764184146921,16.98607636,144.15,144.14,0.2]
[1764184147701,17.2703995,144.15,144.14,0.2]
[1764184148114,17.2703995,144.15,144.12,0.1]
[1764184148115,0.28432314,144.13,144.12,0.1]
[1764184148423,7.79045458,144.1,144.09,0.1]
[1764184148721,0.28432314,144.09,144.08,0.1]
[1764184148909,0.95432314,144.09,144.08,0.1]
[1764184149104,11.56045458,144.09,144.08,0.1]
[1764184149997,27.31050637,144.09,144.08,0.1]
[1764184150204,16.70437493,144.09,144.08,0.1]
[1764184150399,6.93830366,144.13,144.08,0.79]
[1764184150701,11.90994492,144.12,144.08,0.79]
[1764184150910,19.41607636,144.12,144.08,0.79]
[1764184151110,7.50613144,144.11,144.08,0.79]
[1764184152107,14.44534428,144.11,144.08,0.79]
[1764184152531,18.87973686,144.16,144.09,51.59151394]
[1764184152737,23.25346486,144.15,144.1,0.69]
[1764184152939,10.60613144,144.14,144.1,0.69]
[1764184153237,3.1,144.14,144.1,0.69]
[1764184153406,7.50613144,144.18,144.12,7.50613144]
[1764184153605,7.50613144,144.18,144.13,44.7753825]
[1764184153606,10.60613144,144.17,144.13,44.7753825]
[1764184153803,10.60613144,144.17,144.14,0.69]
[1764184154213,17.54239345,144.17,144.14,0.69]
[1764184154430,0.86691171,144.19,144.16,44.0853825]
[1764184154641,13.12751255,144.27,144.16,44.0853825]
[1764184154642,3.1,144.18,144.17,0.7]
[1764184154929,11.61625152,144.22,144.18,44.0853825]
[1764184155134,3.1,144.21,144.18,44.0853825]
[1764184155313,3.1,144.21,144.19,0.7]
[1764184155630,14.71625152,144.21,144.19,0.7]
[1764184155809,14.71625152,144.21,144.16,51.72175288]
[1764184156144,21.65070089,144.21,144.16,51.72175288]
[1764184156314,14.71625152,144.2,144.17,0.7]
[1764184156510,14.71625152,144.2,144.16,44.0853825]
[1764184156705,14.71625152,144.2,144.17,0.7]
[1764184157305,11.61625152,144.2,144.17,0.7]
[1764184157510,3.1,144.19,144.17,0.7]
[1764184158425,3.1,144.19,144.17,7.63619503]
[1764184158922,18.55068076,144.21,144.17,7.63619503]
[1764184159130,11.61625152,144.21,144.18,0.7]
[1764184159329,3.1,144.2,144.18,0.7]
[1764184159527,3.1,144.2,144.16,44.0853825]
[1764184159709,14.71625152,144.2,144.17,0.7]
[1764184159913,3.1,144.2,144.17,0.7]
[1764184160113,6.93353195,144.23,144.19,6.9352937]
[1764184160319,3.1,144.22,144.19,6.9352937]
[1764184160518,11.61625152,144.21,144.17,83.74471513]
[1764184160734,11.61625152,144.2,144.17,84.44471513]
[1764184160924,3.1,144.19,144.17,23.94471513]
[1764184161124,3.1,144.19,144.17,17.008864]
[1764184161824,3.1,144.19,144.17,23.94508531]
[1764184162237,0.86667128,144.23,144.17,34.86133683]
[1764184162541,3.1,144.22,144.2,11.61625152]
[1764184162719,3.1,144.22,144.21,0.7]
[1764184163226,3.1,144.22,144.19,44.0853825]
[1764184163539,3.1,144.22,144.19,44.7853825]
[1764184163740,3.1,144.22,144.19,44.0853825]
[1764184163920,3.1,144.22,144.2,0.7]
[1764184164112,3.1,144.22,144.2,7.63467141]
[1764184164619,11.61625152,144.23,144.2,7.63467141]
[1764184164817,3.1,144.21,144.2,7.63467141]
[1764184165648,22.34062269,144.21,144.18,60.5]
[1764184165834,11.61625152,144.2,144.16,44.7853825]
[1764184166142,3.1,144.19,144.17,0.7]
[1764184166346,3.1,144.19,144.16,44.0853825]
[1764184166541,3.1,144.19,144.16,44.7853825]
[1764184167432,3.1,144.19,144.16,51.72202614]
[1764184169233,7.80071234,144.22,144.16,68.36386853]
[1764184169445,8.80994492,144.23,144.18,55.70163402]
[1764184169653,3.1,144.22,144.19,0.7]
[1764184169821,3.1,144.22,144.19,7.63499084]
[1764184171622,21.65022085,144.22,144.19,0.7]
[1764184171842,21.65022085,144.22,144.18,51.02103961]
[1764184172055,21.65022085,144.22,144.18,51.72103961]
[1764184172236,21.65022085,144.22,144.19,0.7]
[1764184172418,14.71625152,144.22,144.19,0.7]
[1764184173133,14.71625152,144.22,144.19,61.2]
[1764184174036,14.71625152,144.22,144.19,68.13506433]
[1764184174241,3.1,144.22,144.19,68.13506433]
[1764184174634,10.03388479,144.22,144.19,61.2]
[1764184175550,21.65013631,144.22,144.19,61.2]
[1764184175744,21.65013631,144.22,144.18,51.02096294]
[1764184175745,11.61625152,144.21,144.17,0.7]
[1764184176047,3.1,144.2,144.19,0.7]
[1764184176251,3.1,144.2,144.19,7.63516032]
[1764184176746,3.1,144.2,144.18,7.63557444]
[1764184177131,3.1,144.2,144.19,0.7]
[1764184179045,3.1,144.2,144.18,6.93557444]
[1764184179237,3.1,144.2,144.18,7.63557444]
[1764184180753,3.1,144.2,144.18,6.93557444]
[1764184180955,18.55012439,144.22,144.19,0.7]
[1764184181155,3.1,144.21,144.19,0.7]
[1764184181830,3.1,144.21,144.18,7.63557444]
[1764184182031,3.1,144.2,144.19,0.7]
[1764184182950,3.1,144.2,144.18,67.43557444]
[1764184183158,3.1,144.2,144.18,68.13557444]
[1764184183327,18.5501436,144.22,144.18,67.43557444]
[1764184183532,3.79,144.21,144.18,67.43557444]
[1764184183733,8.80994492,144.23,144.19,0.7]
[1764184183933,3.1,144.22,144.19,61.2]
[1764184185353,3.1,144.21,144.19,68.13506998]
[1764184185559,11.61625152,144.24,144.2,0.68]
[1764184185744,3.1,144.23,144.2,0.68]
[1764184186152,11.61625152,144.21,144.19,60.5]
[1764184186355,3.1,144.2,144.19,60.5]
[1764184189263,3.1,144.2,144.19,67.4352937]
[1764184191156,0.28432314,144.25,144.19,68.1152937]
[1764184191157,12.4829228,144.23,144.19,68.1152937]
[1764184191357,8.80994492,144.25,144.2,0.68]
[1764184191553,14.71625152,144.24,144.2,0.68]
[1764184191755,3.1,144.24,144.2,0.68]
[1764184191942,14.71625152,144.24,144.2,0.68]
[1764184192352,11.61625152,144.24,144.2,0.68]
[1764184192551,3.1,144.23,144.2,0.68]
[1764184192757,8.80994492,144.25,144.21,6.93433187]
[1764184193045,3.1,144.24,144.21,51.01971437]
[1764184193240,3.1,144.23,144.22,0.68]
[1764184193952,9.67637591,144.27,144.22,0.68]
[1764184194154,3.1,144.26,144.23,44.0853825]
[1764184194548,3.1,144.26,144.24,0.68]
[1764184195062,3.1,144.26,144.24,7.61274127]
[1764184195452,14.71625152,144.26,144.24,0.68]
[1764184195653,14.71625152,144.26,144.24,7.61287025]
[1764184196055,3.1,144.26,144.24,7.61287025]
[1764184196256,3.1,144.26,144.24,6.93287025]
[1764184196458,3.1,144.26,144.24,7.61287025]
[1764184196846,14.71625152,144.26,144.24,7.61287025]
[1764184197048,14.71625152,144.26,144.24,6.93287025]
[1764184197468,11.61625152,144.26,144.23,51.01855799]
[1764184197672,3.08,144.25,144.23,51.69855799]
[1764184198969,3.08,144.24,144.23,51.69855799]
[1764184199163,3.08,144.24,144.23,113.19855799]
[1764184201369,8.95210649,144.29,144.23,130.53198376]
[1764184201556,8.80994492,144.29,144.24,12.29625152]
[1764184201754,0.2,144.31,144.3,16.308864]
[1764184201956,3.28,144.31,144.3,72.69049802]
[1764184202159,3.28,144.31,144.3,79.62050495]
[1764184202568,3.28,144.31,144.3,60.3942465]
[1764184203358,3.28,144.31,144.24,11.61625152]
[1764184203359,0.28432314,144.29,144.24,11.61625152]
[1764184203697,11.61625152,144.27,144.24,11.61625152]
[1764184203972,3.08,144.26,144.25,0.68]
[1764184204347,3.08,144.26,144.24,0.68]
[1764184205574,0.8663109,144.29,144.24,56.38163402]
[1764184205755,0.2,144.31,144.24,44.7653825]
[1764184205756,3.08,144.28,144.24,44.7653825]
[1764184205958,3.08,144.28,144.26,11.61625152]
[1764184206357,0.2,144.31,144.27,63.31308199]
[1764184206562,0.2,144.31,144.3,72.01049802]
[1764184207072,0.2,144.31,144.3,72.67049802]
[1764184207268,0.2,144.31,144.3,61.0542465]
[1764184207575,0.2,144.31,144.3,72.67049802]
[1764184208472,0.2,144.31,144.3,79.60050495]
[1764184210383,0.2,144.31,144.3,67.98425343]
[1764184210580,0.2,144.31,144.3,63.29164095]
[1764184210773,0.2,144.31,144.3,51.67538943]
[1764184211281,0.2,144.31,144.3,44.0853825]
[1764184211481,0.2,144.31,144.29,23.23924902]
[1764184211482,12.47625152,144.31,144.28,44.0853825]
[1764184211785,0.2,144.31,144.28,44.7453825]
[1764184211983,0.2,144.31,144.28,51.67628202]
[1764184213085,0.2,144.31,144.28,51.01628202]
[1764184214089,0.2,144.31,144.29,0.65]
[1764184214283,3.08,144.3,144.29,0.65]
[1764184215197,3.08,144.3,144.29,6.93048721]
[1764184215570,3.08,144.3,144.28,62.63243203]
[1764184215786,3.08,144.3,144.28,63.28243203]
[1764184216695,3.08,144.3,144.28,59.16028936]
[1764184216987,3.08,144.3,144.28,51.66618051]
[1764184217191,3.08,144.3,144.28,113.16618051]
[1764184219178,0.2,144.31,144.29,8.14410885]
[1764184219395,0.2,144.31,144.3,67.88835535]
[1764184219584,3.28,144.31,144.3,68.53835535]
[1764184220077,3.28,144.31,144.3,61.0442465]
[1764184221081,3.28,144.31,144.3,67.97425343]
[1764184221885,3.28,144.31,144.3,61.0442465]
[1764184222078,3.28,144.31,144.3,23.23887093]
[1764184222695,3.28,144.31,144.29,68.43031456]
[1764184222896,10.77410885,144.31,144.29,61.5]
[1764184223079,8.80994492,144.29,144.25,6.93207385]
[1764184223284,16.30405377,144.29,144.24,112.51807392]
[1764184223497,0.68,144.28,144.24,51.66807392]
[1764184223701,3.08,144.27,144.24,51.66807392]
[1764184224394,3.08,144.26,144.25,0.65]
[1764184224578,3.08,144.26,144.25,62.15]
[1764184225093,3.08,144.26,144.25,61.5]